Cogmind - Beta 9.6 @@@ ROGUE MODE // 2020.06.04 @ 16:54:33 Player: Ether Result: Destroyed by S-10 Pest with Light Assault Rifle Performance ------------- Evolutions (0) 0 Regions Visited (1) 200 Robots Destroyed (23) 115 Value Destroyed (615) 615 Prototype IDs (2) 40 Alien Tech Used (0) 0 Bonus (0) 0 TOTAL SCORE: 970 Bonus ------- None Cogmind --------- Core Integrity 0/250 Matter 300/300 Energy 100/100 System Corruption 1% Temperature Cool (0) Movement Walking (120) Location -10/Materials Parts ------- > --- POWER (1) -------- (None) > --- PROPULSION (2) --- Aluminum Leg > --- UTILITY (2) ------ Medium Storage Unit Visual Processing Unit > --- WEAPON (2) ------- (None) > --- INVENTORY (8) ---- Ion Engine Aluminum Leg Aluminum Leg Aluminum Leg VTOL Module VTOL Module Seismic Analyzer Peak State ------------ > --- POWER ------------ Ion Engine > --- PROPULSION ------- Aluminum Leg Aluminum Leg > --- UTILITY ---------- Medium Storage Unit Visual Processing Unit > --- WEAPON ----------- Light EM Pulse Cannon Light EM Pulse Cannon > --- INVENTORY -------- Ion Engine Aluminum Leg Aluminum Leg Aluminum Leg VTOL Module VTOL Module Seismic Analyzer Datajack [Rating: 11] Favorites ----------- Power Ion Engine Engine Ion Engine Propulsion Aluminum Leg Leg Aluminum Leg Utility Small Storage Unit Storage Small Storage Unit Processor Visual Processing Unit Weapon Light EM Pulse Cannon Energy Gun EM Pulse Gun Energy Cannon Light EM Pulse Cannon Special Melee Weapon Datajack Build | -11 -10 ------- Run | Scr Mat Slots Evolved . | . . Power . | . . Propulsion . | . . Utility . | . . Weapon . | . . Parts Attached 17 | 7 10 Power 1 | 1 . Engine 1 | 1 . Core . | . . Reactor . | . . Propulsion 7 | 2 5 Treads . | . . Leg 7 | 2 5 Wheel . | . . Hover . | . . Flight . | . . Utility 4 | 2 2 Device . | . . Storage 3 | 2 1 Processor 1 | . 1 Hackware . | . . Protection . | . . Artifact . | . . Weapon 5 | 2 3 Energy Gun 2 | 2 . Energy Cannon 2 | . 2 Ballistic Gun . | . . Ballistic Cannon . | . . Launcher . | . . Special Weapon . | . . Impact Weapon . | . . Slashing Weapon . | . . Piercing Weapon . | . . Special Melee Weapon 1 | . 1 Unidentified Prototypes . | . . Parts Lost 5 | . 5 Power 1 | . 1 Propulsion 1 | . 1 Utility . | . . Weapon 3 | . 3 Highest Loss Streak 4 | . 4 Average Slot Usage (%) 97 | . 97 Engine 13 | . 13 Leg 27 | . 27 Storage 19 | . 19 Processor 8 | . 8 Energy Cannon 25 | . 25 Naked Turns . | . . Heaviest Build 21 | 17 21 Greatest Support 20 | 20 20 Greatest Overweight (x) 2 | . 2 Average Overweight (x) . | . . Largest Inventory Capacity 10 | 8 10 Average Capacity 7 | 6 8 Most Carried 8 | 8 8 Average Carried 7 | 4 7 Final Capacity 8 | 8 8 Final Carried 8 | 8 7 Class Distribution -------------------- 100% | Mutant Dominant Class ---------------- Mutant | -10/Materials Resources | -11 -10 ----------- Run | Scr Mat Matter Collected 370 | 270 100 Remotely . | . . Salvage Created 1021 | 139 882 Parts 47 | 9 38 Haulers Intercepted 1 | . 1 Recyclers Shooed . | . . Parts Field Recycled . | . . Retrieved Matter . | . . Parts Self-Destructed . | . . Prevented . | . . Kills | -11 -10 ------- Run | Scr Mat Combat Hostiles Destroyed 15 | . 15 Cannons 11 | . 11 AOE 1 | . 1 Classes Destroyed 8 | 3 5 Worker 1 | 1 . Tunneler 1 | 1 . Hauler 1 | . 1 Recycler 2 | 1 1 Operator 1 | . 1 Watcher 2 | . 2 Swarmer 1 | . 1 Grunt 14 | . 14 Best Kill Streak 3 | 3 3 Combat Bots Only 2 | . 2 Max Kills in Single Turn 1 | 1 1 Gunslinging . | . . Exploded 1 | . 1 Melee . | . . Uniques/NPCs Destroyed . | . . Combat | -11 -10 -------- Run | Scr Mat Damage Taken 819 | 31 788 Core 254 | . 254 Absorbed by Shields . | . . Core Remaining (%) 100 | 100 . Volleys Fired 56 | 9 47 Largest 2 | 1 2 Hottest 112 | 40 112 Shots Fired 89 | 9 80 Gun 9 | 9 . Cannon 80 | . 80 Launcher . | . . Special . | . . Kinetic . | . . Thermal . | . . Explosive . | . . Electromagnetic 89 | 9 80 Robot Hit Streak 15 | 5 15 Robot Miss Streak 1 | 1 1 Penetration Max . | . . Secondary Targets . | . . Shots Hit Robots 66 | 7 59 Core Hits 26 | 3 23 Critical Hits . | . . Critical Kills . | . . Critical Parts Destroyed . | . . Melee Attacks 1 | . 1 Impact . | . . Slashing . | . . Piercing . | . . Sneak Attacks . | . . Combat Hostiles . | . . Follow-up Attacks . | . . Damage Inflicted 1433 | 136 1297 Guns 106 | 106 . Cannons 1178 | . 1178 Explosions 124 | 30 94 Melee . | . . Ramming 25 | . 25 Kinetic . | . . Thermal 124 | 30 94 Explosive . | . . Electromagnetic 1284 | 106 1178 Impact . | . . Slashing . | . . Piercing . | . . Highest Corruption 1 | . 1 Average Corruption 1 | . 1 Corruption Purged . | . . Overload Shots . | . . Overflow Damage 34 | . 34 Projectiles 34 | . 34 Explosions . | . . Melee . | . . Knockbacks . | . . Impact . | . . Kinetic . | . . Secondary . | . . Self-Inflicted Damage 125 | 31 94 Shots 4 | 1 3 Rammed 14 | . 14 Targets Rammed 21 | . 21 Kicked 7 | . 7 Crushed . | . . Highest Temperature 262 | 12 262 Average Temperature 96 | 12 97 Received Heat Transfer 183 | . 183 Effects 4 | . 4 Energy Bleed 2 | . 2 Interference 2 | . 2 Siege Activations . | . . Robots Corrupted 3 | . 3 Combat Hostiles 3 | . 3 Parts Fried 9 | . 9 Impact Corruptions . | . . Robots Melted . | . . Combat Hostiles . | . . Parts Melted . | . . Heat Transferred 200 | 50 150 Parts Sabotaged . | . . Parts Stolen . | . . Parts Stripped . | . . Power Chain Reactions 4 | 1 3 Missiles Intercepted . | . . Alert | -11 -10 ------- Run | Scr Mat Peak Influence 210 | 15 210 Average Influence 84 | 5 95 Maximum Alert Level 1 | . 1 Low Security (%) 95 | 100 94 Level 1 4 | . 5 Level 2 . | . . Level 3 . | . . Level 4 . | . . Level 5 . | . . High Security . | . . Max Security . | . . Squads Dispatched 3 | . 3 Investigation . | . . Extermination . | . . Reinforcement 3 | . 3 Assault . | . . Garrison . | . . Intercept . | . . Construction Impeded . | . . Haulers Reinforced . | . . Stealth | -11 -10 --------- Run | Scr Mat Distress Signals . | . . Communications Jammed . | . . Distress Signals . | . . Times Spotted 30 | . 30 Peak Tracking Total 3 | . 3 Tactical Retreats 5 | . 5 Traps | -11 -10 ------- Run | Scr Mat Traps Triggered 1 | . 1 Indirectly . | . . Trap Hack Attempts . | . . Triggered . | . . Disarmed . | . . Reprogrammed 6 | . 6 Reused 1 | . 1 Traps Extracted . | . . Installed . | . . Triggered 3 | . 3 Machines | -11 -10 ---------- Run | Scr Mat Machines Disabled 2 | . 2 Max in Single Turn 2 | . 2 Machines Sabotaged . | . . Garrisons Compromised . | . . Overloaded Fab Kills . | . . Fab Network Shutdowns . | . . Hacking | -11 -10 --------- Run | Scr Mat Machines Accessed 7 | . 7 Terminals 5 | . 5 Fabricators . | . . Repair Stations 1 | . 1 Recycling Units 1 | . 1 Scanalyzers . | . . Garrison Access . | . . Total Hacks 24 | . 24 Successful 18 | . 18 Failed 6 | . 6 Catastrophic . | . . Database Lockouts . | . . Manual 8 | . 8 Terminals 21 | . 21 Fabricators . | . . Repair Stations 2 | . 2 Recycling Units 1 | . 1 Scanalyzers . | . . Garrison Access . | . . Terminal Hacks 15 | . 15 Record 1 | . 1 Prototype ID Bank 1 | . 1 Level Access Points 1 | . 1 Branch Access Points 1 | . 1 Emergency Access Points 1 | . 1 Locate Traps 1 | . 1 Reprogram Traps 1 | . 1 Security Status 1 | . 1 Investigation Status 1 | . 1 Assault Status 1 | . 1 Recall Investigation 1 | . 1 Hauler Manifests 2 | . 2 Zone Layout 2 | . 2 Fabricator Hacks . | . . Repair Station Hacks 2 | . 2 Scan Component 1 | . 1 Repair 1 | . 1 Recycling Unit Hacks 1 | . 1 Report Inventory 1 | . 1 Scanalyzer . | . . Garrison Access Hacks . | . . Unauthorized Hacks . | . . Terminals . | . . Fabricators . | . . Repair Stations . | . . Recycling Units . | . . Scanalyzers . | . . Garrison Access . | . . Data Cores Recovered . | . . Used . | . . Hacking Detections 6 | . 6 Full Trace Events . | . . Feedback Events . | . . Feedback Blocked . | . . Robot Schematics Acquired . | . . Robots Built . | . . Matter . | . . Time . | . . Total Robot Build Rating . | . . Part Schematics Acquired . | . . Parts Built . | . . Matter . | . . Time . | . . Total Part Build Rating . | . . Parts Repaired 1 | . 1 Time 16 | . 16 Parts Recycled . | . . Recycled Matter . | . . Retrieved Matter . | . . Retrieved Components . | . . Parts Scanalyzed . | . . Part Schematics Acquired . | . . Parts Damaged . | . . Bothacking | -11 -10 ------------ Run | Scr Mat Used RIF Installer . | . . Robots Hacked . | . . Non-combat . | . . Combat . | . . Robot Hacks Applied . | . . Relay Couplers Released . | . . Robots Rewired . | . . Allies Hacked . | . . Hacks Repelled . | . . Allies | -11 -10 -------- Run | Scr Mat Total Allies . | . . Largest Group . | . . Highest-Rated Group . | . . Highest-Rated Ally . | . . Total Orders . | . . Ally Attacks . | . . Total Damage . | . . Kills . | . . Allies Corrupted . | . . Allies Melted . | . . Intel | -11 -10 ------- Run | Scr Mat Robot Analysis Total . | . . Derelict Logs Recovered . | . . Drone Launches . | . . Drone Recoveries . | . . Exploration | -11 -10 ------------- Run | Scr Mat Turns Passed 1323 | 153 1170 Spaces Moved 643 | 99 544 Core 4 | 4 . Treads . | . . Legs 639 | 95 544 Wheels . | . . Hover . | . . Flight . | . . Fastest Speed 50 | 50 120 Average Speed 142 | 117 146 Slowest Speed 180 | 120 180 Overloaded Moves . | . . Propulsion Burnouts . | . . Robots Hopped . | . . Cave-ins Triggered . | . . Exploration Rate (%) 44 | 6 82 Regions Visited 1 Branch Regions . Pre-discovered Areas . | . . Known Exits Taken . | . . Unknown Exits Taken 1 | 1 . Scrap Searched . | . . Spaces Dug . | . . Terrain Destroyed 16 | 7 9 Melee . | . . Projectile . | . . AOE 16 | 7 9 Actions | -11 -10 --------- Run | Scr Mat Total 962 | 124 838 Wait 182 | . 182 Move 642 | 98 544 Hop . | . . Pick Up 22 | 9 13 Fast Attach 12 | 7 5 Attach 2 | . 2 Detach . | . . Swap 3 | . 3 Drop 21 | 1 20 Fire 56 | 9 47 Melee 1 | . 1 Ram . | . . Kick 21 | . 21 Crush . | . . Escape Stasis . | . . Rewire . | . . Trap . | . . Miscellaneous . | . . Route ------- -11/Scrapyard -10/Materials (discovered 5 exits: *Mat x3 / *Min x2) History --------- Turn | Location | Event 23 | -11/Scrapyard | Discovered new exit (range 16) 154 | -11/Scrapyard | Entered Materials 165 | -10/Materials | Identified exit to Materials 304 | -10/Materials | Build established: Mutant 480 | -10/Materials | Discovered new exit (range 15) 504 | -10/Materials | Repaired Imp. Terrain Scanner 527 | -10/Materials | Identified exit to Mines 1284 | -10/Materials | Core integrity fell below 50% 1320 | -10/Materials | Core integrity fell below 20% 1324 | -10/Materials | Destroyed by S-10 Pest with Light Assault Rifle Last Messages --------------- 01268_ Lgt. Ion Engine fried. 01268_ S-10 Pest destroyed. 01280_ Lgt. EM Pulse Cannon destroyed. 01282_ Acquired 10 matter. 01282_ Jacked S-10 Pest... 01284_ Kicked S-10 Pest out of the way. 01285_ Slammed into S-10 Pest. 01286_ Ion Engine destroyed. 01287_ Slammed into S-10 Pest. 01297_ Destabilizing: System corrupted (+1). 01299_ Slammed into S-10 Pest. 01300_ Kicked S-10 Pest out of the way. 01311_ Datajack destroyed. 01313_ Slammed into S-10 Pest. 01314_ Kicked S-10 Pest out of the way. 01318_ Aluminum Leg destroyed. 01319_ Slammed into S-10 Pest. 01320_ Destabilizing: Core damaged (-12). 01321_ Slammed into S-10 Pest. 01323_ Kicked S-10 Pest out of the way. Map ----- +----------------------------------------------------+ | ??????# ??????# # | | ?????## #?????############# | | ?????# ################## | | ?????# | | ?????# | | ?????# | | ?????# ### ############## | | ?????????? ??# #????????????# | | ?????????# ??# #????????????# | | ?????????# #?# #????????????# | | ?????????# #?# #????????????# | | ?????????# #?# #????????????# | | ########## #?#/#########????# | | # T # #?# ] #????# | | # # ### T #????# | | # """ # # #????# | | # """"" # # """ """ #????# | | # """"" / + """ """ #????# | | # """"" # # """ """ #????# | | # """ # # ?????# | | # # # #????#### | | # != % # #############?????# | | ####/##### # """"" #?????# | | ???#%#??##! # """"" #?????# | | ???#%#####%% # """"" #?????# | | ???#%s%@s%%%%# #?????# | | ???#######%%%# "Y" #?????# | | ???????###%%%+%""" #?????# | | ?????????#%% # #?????? | | ?????????#% #############?????? | | ?????????# #?????????????????? | | ?????????# #?????????????????? | | ?????????+ #????????????????## | | ?????????# #????????????????# | | ?????????# #????????????????# | | ?????????# #????????????????# | | ?????????# #????????????????## | | ?????????+ #???????????####### | | ?????????# #???????????# | | ?????????# #???????????# | | ?????????# #???????????# """ | | ?????????# #???????????# """ | | ?????????+ +???????????# """ | | ?????????? < ????????????# | | ?????????????????????????# | | ?????????????????????????# | | ?????????????????????????# "T" | | ?????????????????????????# """ * | | ?????????????????????????# | | ?????????????????????????####### | +----------------------------------------------------+ Best States ------------- Heat Dissipation 25 Energy Generation 10 Energy Capacity 250 Matter Stores 300 Matter Capacity 300 Sight Range 18 Terrain Scan Density 10 Evasion (%) 40 Item Schematics ----------------- None Robot Schematics ------------------ None Fabricated ------------ Nothing Alien Tech Used ----------------- None Achievements -------------- None Challenges ------------ None Game ------ Seed MyomerScanCoupler Manual? 0 Play Time 00:17:36 Cumulative 12.1 hours Start 2020.06.04 @ 16:36:28 End 2020.06.04 @ 16:54:33 Sessions 1 Manual Loads 0 Difficulty Rogue Special Mode None Game No. 34 Rogue 34 Adventurer 0 Explorer 0 Win Type - Total 0 Types 0/0/0/0/0/0/0 Lore% 17 Gallery% 22 Achievement% 14 Wizard Run 0 Options --------- ASCII 0 Keyboard 0 Movement Numpad Keybinds 0 Fullscreen 1 Font 18/SmallcapsGlow Map View 76x50 Tactical HUD 1 Map Filters NONE Filters NONE Steam 1 RUN: 1544964f-774c-4d2a-88ae-444fe557c85b